[Event "New Zealand Rapid Championship"]
[Site "Wellington"]
[Date "2023.01.12"]
[Round "6.7"]
[White "Park-Tamati, Philli"]
[Black "Dive, Russell J"]
[Result "1/2-1/2"]
[TimeControl "25+5"]
[BlackTitle "IM"]
[WhiteFideId "4309090"]
[BlackFideId "4300106"]
[WhiteElo "1861"]
[BlackElo "2367"]

1. d4 {[%clk 00:24:53]} {[%emt 00:00:16]} Nf6 {[%clk 00:25:09]} {[%emt
00:00:01]} 2. Bf4 {[%clk 00:24:57]} {[%emt 00:00:03]} c5 {[%clk 00:25:14]} 3.
d5 {[%clk 00:24:59]} {[%emt 00:00:02]} d6 {[%clk 00:25:15]} {[%emt 00:00:05]} 4.
Nc3 {[%clk 00:25:02]} {[%emt 00:00:01]} g6 {[%clk 00:25:08]} {[%emt 00:00:13]}
5. e4 {[%clk 00:24:52]} {[%emt 00:00:14]} Bg7 {[%clk 00:25:12]} 6. Nf3 {[%clk
00:24:55]} {[%emt 00:00:02]} O-O {[%clk 00:25:12]} {[%emt 00:00:05]} 7. Be2
{[%clk 00:24:51]} {[%emt 00:00:08]} Bg4 {[%clk 00:25:15]} {[%emt 00:00:03]} 8.
h3 {[%clk 00:24:54]} {[%emt 00:00:03]} Bxf3 {[%clk 00:25:18]} {[%emt 00:00:02]}
9. Bxf3 {[%clk 00:24:57]} {[%emt 00:00:01]} Nfd7 {[%clk 00:24:52]} {[%emt
00:00:32]} 10. O-O {[%clk 00:24:43]} {[%emt 00:00:19]} Qa5 {[%clk 00:24:55]}
{[%emt 00:00:03]} 11. Bd2 {[%clk 00:24:42]} {[%emt 00:00:05]} b5 {[%clk
00:24:51]} {[%emt 00:00:09]} 12. a3 {[%clk 00:24:25]} {[%emt 00:00:22]} Na6
{[%clk 00:23:21]} {[%emt 00:01:35]} 13. Be2 {[%clk 00:22:42]} {[%emt 00:01:48]}
c4 {[%clk 00:23:16]} {[%emt 00:00:10]} 14. b4 {[%clk 00:21:49]} {[%emt
00:00:58]} cxb3 {[%clk 00:22:55]} {[%emt 00:00:27]} 15. Nxb5 {[%clk 00:21:52]}
{[%emt 00:00:02]} Qb6 {[%clk 00:22:50]} {[%emt 00:00:10]} 16. cxb3 {[%clk
00:21:51]} {[%emt 00:00:06]} Nac5 {[%clk 00:22:00]} {[%emt 00:00:54]} 17. Be3
{[%clk 00:21:19]} {[%emt 00:00:38]} Qb7 {[%clk 00:20:44]} {[%emt 00:01:21]} 18.
Rc1 {[%clk 00:19:00]} {[%emt 00:02:23]} a6 {[%clk 00:20:15]} {[%emt 00:00:35]}
19. b4 {[%clk 00:18:42]} {[%emt 00:00:23]} Nxe4 {[%clk 00:17:12]} {[%emt
00:03:08]} 20. Rc7 {[%clk 00:18:37]} {[%emt 00:00:09]} Qb8 {[%clk 00:17:15]}
{[%emt 00:00:01]} 21. Rxd7 {[%clk 00:18:00]} {[%emt 00:00:43]} axb5 {[%clk
00:17:18]} {[%emt 00:00:02]} 22. Rxe7 {[%clk 00:16:26]} {[%emt 00:01:39]} Nc3
{[%clk 00:17:21]} {[%emt 00:00:02]} 23. Qd2 {[%clk 00:15:27]} {[%emt 00:01:04]}
Rxa3 {[%clk 00:17:24]} {[%emt 00:00:03]} 24. Bf3 {[%clk 00:14:44]} {[%emt
00:00:48]} Re8 {[%clk 00:14:49]} {[%emt 00:02:39]} 25. Rxe8+ {[%clk 00:14:23]}
{[%emt 00:00:27]} Qxe8 {[%clk 00:14:53]} {[%emt 00:00:01]} 26. Re1 {[%clk
00:14:12]} {[%emt 00:00:16]} Qf8 {[%clk 00:08:10]} {[%emt 00:06:47]} 27. Qd3
{[%clk 00:11:44]} {[%emt 00:02:34]} Qa8 {[%clk 00:05:38]} {[%emt 00:02:37]} 28.
Bd4 {[%clk 00:09:49]} {[%emt 00:02:00]} Na2 {[%clk 00:05:20]} {[%emt 00:00:23]}
29. Qe4 {[%clk 00:07:33]} {[%emt 00:02:21]} h5 {[%clk 00:05:22]} {[%emt
00:00:03]} 30. Bxg7 {[%clk 00:07:27]} {[%emt 00:00:11]} Kxg7 {[%clk 00:05:26]}
{[%emt 00:00:02]} 31. Qd4+ {[%clk 00:07:32]} Kg8 {[%clk 00:05:19]} {[%emt
00:00:11]} 32. Qb6 {[%clk 00:07:34]} {[%emt 00:00:04]} Nxb4 {[%clk 00:01:17]}
{[%emt 00:04:06]} 33. Qxb5 {[%clk 00:07:04]} {[%emt 00:00:35]} Qa4 {[%clk
00:01:21]} {[%emt 00:00:01]} 34. Qb8+ {[%clk 00:07:08]} {[%emt 00:00:01]} Kg7
{[%clk 00:01:17]} {[%emt 00:00:09]} 35. Qxd6 {[%clk 00:07:12]} {[%emt
00:00:01]} Nd3 {[%clk 00:01:07]} {[%emt 00:00:15]} 36. Rf1 {[%clk 00:02:50]}
{[%emt 00:04:27]} Ra2 {[%clk 00:01:10]} {[%emt 00:00:02]} 37. Qc6 {[%clk
00:02:36]} {[%emt 00:00:20]} Qd4 {[%clk 00:01:10]} {[%emt 00:00:04]} 38. d6
{[%clk 00:01:58]} {[%emt 00:00:43]} Rxf2 {[%clk 00:00:10]} {[%emt 00:01:06]} 39.
Rxf2 {[%clk 00:01:48]} {[%emt 00:00:15]} Qxf2+ {[%clk 00:00:13]} {[%emt
00:00:02]} 40. Kh2 {[%clk 00:01:34]} {[%emt 00:00:19]} Qd4 {[%clk 00:00:17]}
{[%emt 00:00:01]} 41. Qd5 {[%clk 00:00:51]} {[%emt 00:00:48]} Qf4+ {[%clk
00:00:18]} {[%emt 00:00:04]} 42. g3 {[%clk 00:00:55]} Qd2+ {[%clk 00:00:21]}
{[%emt 00:00:02]} 43. Bg2 {[%clk 00:00:59]} {[%emt 00:00:02]} h4 {[%clk
00:00:19]} {[%emt 00:00:06]} 44. Qd4+ {[%clk 00:00:50]} {[%emt 00:00:14]} f6
{[%clk 00:00:23]} 45. Qxh4 {[%clk 00:00:53]} {[%emt 00:00:02]} Ne1 {[%clk
00:00:21]} {[%emt 00:00:07]} 46. Qe4 {[%clk 00:00:58]} Nxg2 {[%clk 00:00:19]}
{[%emt 00:00:08]} 47. Qxg2 {[%clk 00:01:01]} Qxd6 {[%clk 00:00:23]} 48. Qb7+
{[%clk 00:01:02]} {[%emt 00:00:05]} 1/2-1/2

[Event "New Zealand Rapid Championship"]
[Site "Wellington"]
[Date "2023.01.12"]
[Round "6.8"]
[White "Van der Hoorn, Thomas"]
[Black "Winter, Ryan"]
[Result "1-0"]
[TimeControl "25+5"]
[WhiteFideId "4314565"]
[BlackFideId "4306295"]
[WhiteElo "1888"]
[BlackElo "2117"]

1. e4 {[%clk 00:25:08]} {[%emt 00:00:02]} c5 {[%clk 00:25:06]} {[%emt
00:00:05]} 2. Nf3 {[%clk 00:24:47]} {[%emt 00:00:26]} e6 {[%clk 00:25:09]}
{[%emt 00:00:03]} 3. d4 {[%clk 00:24:38]} {[%emt 00:00:14]} cxd4 {[%clk
00:25:12]} 4. Nxd4 {[%clk 00:24:36]} {[%emt 00:00:07]} Nc6 {[%clk 00:25:07]}
{[%emt 00:00:11]} 5. Nc3 {[%clk 00:24:04]} {[%emt 00:00:37]} Qc7 {[%clk
00:25:05]} {[%emt 00:00:07]} 6. Be3 {[%clk 00:23:42]} {[%emt 00:00:28]} a6
{[%clk 00:24:59]} {[%emt 00:00:10]} 7. Qd2 {[%clk 00:23:35]} {[%emt 00:00:12]}
Nf6 {[%emt 00:00:18]} 8. f3 {[%clk 00:23:15]} {[%emt 00:00:24]} Bb4 {[%clk
00:24:17]} {[%emt 00:00:35]} 9. Nde2 {[%clk 00:21:53]} {[%emt 00:01:26]} d5
{[%clk 00:20:08]} {[%emt 00:04:15]} 10. exd5 {[%clk 00:19:42]} {[%emt
00:02:15]} Nxd5 {[%clk 00:19:55]} {[%emt 00:00:19]} 11. a3 {[%clk 00:17:22]}
{[%emt 00:02:26]} Nxe3 {[%clk 00:17:39]} {[%emt 00:02:20]} 12. Qxe3 {[%clk
00:17:07]} {[%emt 00:00:19]} Be7 {[%clk 00:17:25]} {[%emt 00:00:20]} 13. Ng3
{[%clk 00:16:04]} {[%emt 00:01:07]} b5 {[%clk 00:13:10]} {[%emt 00:04:21]} 14.
Bd3 {[%clk 00:14:19]} {[%emt 00:01:49]} Ne5 {[%clk 00:09:46]} {[%emt 00:03:30]}
15. Be4 {[%clk 00:12:18]} {[%emt 00:02:06]} Rb8 {[%clk 00:09:28]} {[%emt
00:00:23]} 16. Bd3 {[%clk 00:08:18]} {[%emt 00:04:05]} Bb7 {[%clk 00:07:21]}
{[%emt 00:02:12]} 17. Nge4 {[%clk 00:07:59]} {[%emt 00:00:22]} Nxd3+ {[%clk
00:04:58]} {[%emt 00:02:30]} 18. Qxd3 {[%clk 00:07:52]} {[%emt 00:00:10]} Qb6
{[%clk 00:05:00]} {[%emt 00:00:04]} 19. Nf2 {[%clk 00:06:06]} {[%emt 00:01:50]}
O-O {[%clk 00:04:25]} {[%emt 00:00:41]} 20. O-O {[%clk 00:05:46]} {[%emt
00:00:25]} Rbc8 {[%clk 00:03:55]} {[%emt 00:00:35]} 21. Kh1 {[%clk 00:05:01]}
{[%emt 00:00:49]} Rfd8 {[%clk 00:03:25]} {[%emt 00:00:36]} 22. Qe2 {[%clk
00:04:57]} {[%emt 00:00:09]} Bf6 {[%clk 00:03:23]} {[%emt 00:00:07]} 23. Ncd1
{[%clk 00:03:44]} {[%emt 00:01:18]} Bd5 {[%clk 00:02:43]} {[%emt 00:00:45]} 24.
Ne3 {[%clk 00:01:37]} {[%emt 00:02:12]} Bxb2 {[%clk 00:02:24]} {[%emt
00:00:24]} 25. Nxd5 {[%clk 00:01:24]} {[%emt 00:00:18]} Rxd5 {[%clk 00:02:10]}
{[%emt 00:00:19]} 26. Ra2 {[%clk 00:01:18]} {[%emt 00:00:11]} Bf6 {[%clk
00:01:38]} {[%emt 00:00:37]} 27. Nd3 {[%clk 00:01:22]} {[%emt 00:00:01]} h6
{[%clk 00:01:15]} {[%emt 00:00:27]} 28. f4 {[%clk 00:01:20]} {[%emt 00:00:07]}
Qc7 {[%clk 00:00:46]} {[%emt 00:00:35]} 29. Rb1 {[%clk 00:00:27]} {[%emt
00:00:58]} Qc4 {[%clk 00:00:38]} {[%emt 00:00:13]} 30. Rb3 {[%clk 00:00:23]}
{[%emt 00:00:09]} a5 {[%clk 00:00:37]} {[%emt 00:00:06]} 31. a4 {[%clk
00:00:20]} {[%emt 00:00:07]} bxa4 {[%clk 00:00:32]} {[%emt 00:00:10]} 32. Rba3
{[%clk 00:00:24]} Rb8 {[%clk 00:00:32]} {[%emt 00:00:05]} 33. h3 {[%clk
00:00:26]} {[%emt 00:00:02]} Bh4 {[%clk 00:00:29]} {[%emt 00:00:08]} 34. Rxa4
{[%clk 00:00:25]} {[%emt 00:00:07]} Qc3 {[%clk 00:00:21]} {[%emt 00:00:13]} 35.
Kh2 {[%clk 00:00:22]} {[%emt 00:00:08]} Rbb5 {[%clk 00:00:19]} {[%emt
00:00:07]} 36. Nf2 {[%clk 00:00:19]} {[%emt 00:00:07]} Bf6 {[%clk 00:00:20]}
{[%emt 00:00:04]} 37. Ne4 {[%clk 00:00:23]} {[%emt 00:00:01]} Qc8 {[%clk
00:00:19]} {[%emt 00:00:05]} 38. c4 {[%clk 00:00:24]} {[%emt 00:00:04]} Qc7
{[%clk 00:00:16]} {[%emt 00:00:08]} 39. Nxf6+ {[%clk 00:00:25]} {[%emt
00:00:05]} gxf6 {[%clk 00:00:20]} {[%emt 00:00:02]} 40. cxd5 {[%clk 00:00:28]}
{[%emt 00:00:03]} Qc5 {[%clk 00:00:21]} {[%emt 00:00:03]} 1-0

[Event "New Zealand Rapid Championship"]
[Site "Wellington"]
[Date "2023.01.12"]
[Round "6.9"]
[White "Burns, Christopher J"]
[Black "Parfene, Horatiu"]
[Result "0-1"]
[TimeControl "25+5"]
[WhiteFideId "4300920"]
[BlackFideId "1208438"]
[WhiteElo "2031"]
[BlackElo "2085"]

1. e4 {[%clk 00:25:08]} {[%emt 00:00:02]} d6 {[%clk 00:25:05]} {[%emt
00:00:07]} 2. d4 {[%clk 00:25:07]} {[%emt 00:00:04]} g6 {[%clk 00:25:06]}
{[%emt 00:00:03]} 3. Nc3 {[%clk 00:25:08]} {[%emt 00:00:06]} Bg7 {[%clk
00:25:09]} 4. f4 {[%clk 00:25:03]} {[%emt 00:00:10]} Nf6 {[%clk 00:24:20]}
{[%emt 00:00:54]} 5. Nf3 {[%clk 00:24:57]} {[%emt 00:00:11]} O-O {[%clk
00:23:46]} {[%emt 00:00:39]} 6. Be3 {[%clk 00:22:37]} {[%emt 00:02:25]} c6
{[%clk 00:21:44]} {[%emt 00:02:07]} 7. Qd2 {[%clk 00:21:25]} {[%emt 00:01:17]}
b5 {[%clk 00:21:04]} {[%emt 00:00:46]} 8. a3 {[%clk 00:20:12]} {[%emt
00:01:18]} a5 {[%clk 00:20:47]} {[%emt 00:00:22]} 9. h3 {[%clk 00:19:47]}
{[%emt 00:00:27]} Na6 {[%clk 00:18:12]} {[%emt 00:02:43]} 10. e5 {[%clk
00:18:05]} {[%emt 00:01:47]} b4 {[%clk 00:08:42]} {[%emt 00:09:35]} 11. axb4
{[%clk 00:17:32]} {[%emt 00:00:38]} axb4 {[%clk 00:08:43]} {[%emt 00:00:04]} 12.
exf6 {[%clk 00:17:31]} {[%emt 00:00:06]} bxc3 {[%clk 00:08:47]} {[%emt
00:00:02]} 13. Qxc3 {[%clk 00:17:31]} {[%emt 00:00:06]} Bxf6 {[%clk 00:08:40]}
{[%emt 00:00:11]} 14. Qxc6 {[%clk 00:15:35]} {[%emt 00:02:01]} Bd7 {[%clk
00:07:43]} {[%emt 00:01:02]} 15. Qc3 {[%clk 00:15:20]} {[%emt 00:00:20]} Nc5
{[%clk 00:06:17]} {[%emt 00:01:32]} 16. Rxa8 {[%clk 00:11:06]} {[%emt
00:04:19]} Qxa8 {[%clk 00:06:21]} 17. Nd2 {[%clk 00:11:09]} {[%emt 00:00:01]}
Bh4+ {[%clk 00:02:54]} {[%emt 00:03:32]} 18. Bf2 {[%clk 00:10:29]} {[%emt
00:00:45]} Qa1+ {[%clk 00:02:26]} {[%emt 00:00:33]} 19. Ke2 {[%clk 00:10:29]}
{[%emt 00:00:05]} Bb5+ {[%clk 00:01:56]} {[%emt 00:00:35]} 20. Ke3 {[%clk
00:10:26]} {[%emt 00:00:08]} Bxf2+ {[%clk 00:01:49]} {[%emt 00:00:12]} 21. Kxf2
{[%clk 00:10:30]} {[%emt 00:00:01]} Na4 {[%clk 00:00:38]} {[%emt 00:01:17]} 22.
Qa5 {[%clk 00:09:20]} {[%emt 00:01:11]} Bc6 {[%clk 00:00:18]} {[%emt 00:00:28]}
23. Qa6 {[%clk 00:06:18]} {[%emt 00:03:08]} Qd1 {[%clk 00:00:19]} {[%emt
00:00:04]} 24. Ke3 {[%clk 00:04:10]} {[%emt 00:02:13]} Qe1+ {[%clk 00:00:22]}
{[%emt 00:00:02]} 25. Qe2 {[%clk 00:04:00]} {[%emt 00:00:15]} Qg3+ {[%clk
00:00:23]} {[%emt 00:00:03]} 26. Nf3 {[%clk 00:03:43]} {[%emt 00:00:23]} Nxb2
{[%clk 00:00:27]} {[%emt 00:00:01]} 27. c4 {[%clk 00:02:01]} {[%emt 00:01:47]}
Ra8 {[%clk 00:00:31]} 28. Qxb2 {[%clk 00:01:32]} {[%emt 00:00:33]} Bxf3 {[%clk
00:00:22]} {[%emt 00:00:14]} 29. gxf3 {[%clk 00:01:35]} {[%emt 00:00:02]} e5
{[%clk 00:00:21]} {[%emt 00:00:07]} 30. fxe5 {[%clk 00:01:25]} {[%emt
00:00:14]} dxe5 {[%clk 00:00:22]} {[%emt 00:00:04]} 31. dxe5 {[%clk 00:01:22]}
{[%emt 00:00:08]} Re8 {[%clk 00:00:26]} {[%emt 00:00:01]} 32. Ke4 {[%clk
00:00:37]} {[%emt 00:00:51]} f5+ {[%clk 00:00:20]} {[%emt 00:00:11]} 33. Ke3
{[%clk 00:00:15]} {[%emt 00:00:27]} Rxe5+ {[%clk 00:00:23]} {[%emt 00:00:02]}
34. Kd2 {[%clk 00:00:19]} Qf2+ {[%clk 00:00:26]} {[%emt 00:00:02]} 35. Kc3
{[%clk 00:00:18]} {[%emt 00:00:07]} Re3+ {[%clk 00:00:30]} 36. Bd3 {[%clk
00:00:19]} {[%emt 00:00:03]} Rxd3+ {[%clk 00:00:34]} {[%emt 00:00:02]} 37. Kd4
{[%emt 00:00:39]} 0-1

[Event "New Zealand Rapid Championship"]
[Site "Wellington"]
[Date "2023.01.12"]
[Round "6.10"]
[White "Suggate, Romero"]
[Black "Langford, Joshua"]
[Result "1/2-1/2"]
[TimeControl "25+5"]
[WhiteFideId "4313534"]
[BlackFideId "4314557"]
[WhiteElo "1806"]
[BlackElo "1843"]

1. e4 {[%clk 00:25:07]} {[%emt 00:00:02]} c6 {[%clk 00:25:10]} 2. Nf3 {[%clk
00:25:03]} {[%emt 00:00:09]} d5 {[%clk 00:25:13]} {[%emt 00:00:01]} 3. d3
{[%clk 00:25:08]} {[%emt 00:00:02]} g6 {[%clk 00:25:06]} {[%emt 00:00:11]} 4.
Nbd2 {[%clk 00:24:45]} {[%emt 00:00:30]} Bg7 {[%clk 00:25:08]} 5. g3 {[%clk
00:24:39]} {[%emt 00:00:13]} Bg4 {[%clk 00:24:57]} {[%emt 00:00:14]} 6. h3
{[%clk 00:24:41]} {[%emt 00:00:02]} Bxf3 {[%clk 00:25:00]} {[%emt 00:00:02]} 7.
Qxf3 {[%clk 00:24:36]} {[%emt 00:00:10]} e6 {[%clk 00:25:01]} {[%emt 00:00:03]}
8. Bg2 {[%clk 00:24:35]} {[%emt 00:00:06]} Nf6 {[%clk 00:24:41]} {[%emt
00:00:26]} 9. O-O {[%clk 00:24:37]} {[%emt 00:00:03]} O-O {[%clk 00:24:44]}
{[%emt 00:00:03]} 10. Qe3 {[%clk 00:23:58]} {[%emt 00:00:43]} Qb6 {[%clk
00:23:20]} {[%emt 00:01:30]} 11. Qxb6 {[%clk 00:22:22]} {[%emt 00:01:40]} axb6
{[%clk 00:23:24]} {[%emt 00:00:02]} 12. e5 {[%clk 00:22:26]} {[%emt 00:00:01]}
Nfd7 {[%clk 00:23:19]} {[%emt 00:00:10]} 13. f4 {[%clk 00:22:29]} {[%emt
00:00:02]} Na6 {[%clk 00:21:33]} {[%emt 00:01:51]} 14. c3 {[%clk 00:20:14]}
{[%emt 00:02:20]} b5 {[%clk 00:18:50]} {[%emt 00:02:47]} 15. a3 {[%clk
00:18:59]} {[%emt 00:01:20]} Nab8 {[%clk 00:15:55]} {[%emt 00:03:00]} 16. Nb3
{[%clk 00:16:57]} {[%emt 00:02:07]} c5 {[%clk 00:14:47]} {[%emt 00:01:13]} 17.
Be3 {[%clk 00:14:03]} {[%emt 00:02:59]} c4 {[%clk 00:11:49]} {[%emt 00:03:04]}
18. dxc4 {[%clk 00:08:03]} {[%emt 00:06:05]} bxc4 {[%clk 00:11:53]} {[%emt
00:00:01]} 19. Nd2 {[%clk 00:08:06]} Na6 {[%clk 00:10:44]} {[%emt 00:01:14]} 20.
b4 {[%clk 00:07:24]} {[%emt 00:00:48]} cxb3 {[%clk 00:09:52]} {[%emt 00:00:57]}
21. Nxb3 {[%clk 00:07:27]} {[%emt 00:00:01]} Rfc8 {[%clk 00:09:38]} {[%emt
00:00:19]} 22. Rfc1 {[%clk 00:07:30]} {[%emt 00:00:02]} Bf8 {[%clk 00:08:46]}
{[%emt 00:00:58]} 23. c4 {[%clk 00:06:30]} {[%emt 00:01:06]} Rxc4 {[%clk
00:05:59]} {[%emt 00:02:51]} 24. Rxc4 {[%clk 00:06:32]} {[%emt 00:00:02]} dxc4
{[%clk 00:06:04]} 25. Na5 {[%clk 00:06:36]} {[%emt 00:00:01]} Nac5 {[%clk
00:04:31]} {[%emt 00:01:38]} 26. Nxc4 {[%clk 00:06:09]} {[%emt 00:00:32]} Rb8
{[%clk 00:03:53]} {[%emt 00:00:43]} 27. a4 {[%clk 00:05:07]} {[%emt 00:01:08]}
b5 {[%clk 00:03:12]} {[%emt 00:00:44]} 28. axb5 {[%clk 00:04:48]} {[%emt
00:00:24]} Rxb5 {[%clk 00:03:15]} {[%emt 00:00:02]} 29. Ra8 {[%clk 00:04:32]}
{[%emt 00:00:23]} Kg7 {[%clk 00:02:49]} {[%emt 00:00:29]} 30. Bc6 {[%emt
00:00:24]} Rb3 {[%clk 00:01:49]} {[%emt 00:01:03]} 31. Ra7 {[%clk 00:02:42]}
{[%emt 00:01:39]} Rc3 {[%clk 00:00:44]} {[%emt 00:01:10]} 32. Bb5 {[%clk
00:01:56]} {[%emt 00:00:51]} Kg8 {[%clk 00:00:15]} {[%emt 00:00:34]} 33. Kf2
{[%clk 00:01:19]} {[%emt 00:00:42]} Ne4+ {[%clk 00:00:08]} {[%emt 00:00:13]} 34.
Kf3 {[%clk 00:01:24]} Ndc5 {[%clk 00:00:12]} {[%emt 00:00:02]} 35. Ra8 {[%clk
00:01:23]} {[%emt 00:00:06]} Kg7 {[%clk 00:00:10]} {[%emt 00:00:07]} 36. Ra7
{[%clk 00:01:07]} {[%emt 00:00:21]} Kg8 {[%clk 00:00:13]} {[%emt 00:00:02]} 37.
Ra8 {[%clk 00:00:43]} {[%emt 00:00:29]} Rb3 {[%emt 00:00:31]} 38. Bc6 {[%emt
00:00:02]} Kg7 {[%emt 00:00:34]} 39. Ra7 {[%emt 00:00:29]} Kg8 40. Bb5 Rc3 41.
Nb6 {[%emt 00:00:16]} h5 42. Ra5 {[%emt 00:00:36]} Rb3 {[%emt 00:00:02]}
1/2-1/2

[Event "New Zealand Rapid Championship"]
[Site "Wellington"]
[Date "2023.01.12"]
[Round "6.11"]
[White "Archer, Ollie"]
[Black "Yue, Annie"]
[Result "1-0"]
[TimeControl "25+5"]
[WhiteFideId "4317262"]
[BlackFideId "4311663"]
[WhiteElo "1806"]
[BlackElo "1170"]

1. d4 {[%clk 00:25:08]} {[%emt 00:00:01]} d5 {[%clk 00:25:08]} {[%emt
00:00:02]} 2. c4 {[%clk 00:25:11]} {[%emt 00:00:03]} e6 {[%clk 00:25:09]}
{[%emt 00:00:02]} 3. Nc3 {[%clk 00:25:14]} {[%emt 00:00:04]} Nf6 {[%clk
00:25:11]} {[%emt 00:00:01]} 4. cxd5 {[%clk 00:25:16]} {[%emt 00:00:02]} exd5
{[%clk 00:25:06]} {[%emt 00:00:10]} 5. Bg5 {[%clk 00:25:18]} {[%emt 00:00:03]}
Be7 {[%clk 00:25:08]} {[%emt 00:00:05]} 6. e3 {[%clk 00:25:20]} {[%emt
00:00:01]} h6 {[%clk 00:25:10]} {[%emt 00:00:03]} 7. Bh4 {[%clk 00:25:22]}
{[%emt 00:00:03]} Bf5 {[%clk 00:25:02]} {[%emt 00:00:14]} 8. Bxf6 {[%clk
00:25:11]} {[%emt 00:00:16]} Bxf6 {[%clk 00:25:03]} {[%emt 00:00:05]} 9. Qb3
{[%clk 00:25:14]} b6 {[%clk 00:22:47]} {[%emt 00:02:21]} 10. Qxd5 {[%clk
00:24:54]} {[%emt 00:00:24]} Qxd5 {[%clk 00:22:47]} {[%emt 00:00:06]} 11. Nxd5
{[%clk 00:24:57]} {[%emt 00:00:02]} Bd8 {[%clk 00:22:41]} {[%emt 00:00:11]} 12.
Rc1 {[%clk 00:24:21]} {[%emt 00:00:41]} c6 {[%clk 00:22:20]} {[%emt 00:00:26]}
13. Nb4 {[%clk 00:24:13]} {[%emt 00:00:13]} Bd7 {[%clk 00:21:52]} {[%emt
00:00:33]} 14. Nf3 {[%clk 00:24:07]} {[%emt 00:00:11]} Be7 {[%clk 00:21:46]}
{[%emt 00:00:11]} 15. Nd3 {[%clk 00:23:58]} {[%emt 00:00:15]} f6 {[%clk
00:21:17]} {[%emt 00:00:33]} 16. Nf4 {[%clk 00:23:34]} {[%emt 00:00:29]} Bb4+
{[%clk 00:20:52]} {[%emt 00:00:31]} 17. Kd1 {[%clk 00:23:34]} {[%emt 00:00:04]}
g5 {[%clk 00:19:54]} {[%emt 00:01:02]} 18. Nh5 {[%clk 00:22:53]} {[%emt
00:00:47]} Rf8 {[%clk 00:19:04]} {[%emt 00:00:56]} 19. Bd3 {[%clk 00:22:26]}
{[%emt 00:00:32]} f5 {[%clk 00:18:48]} {[%emt 00:00:21]} 20. h4 {[%clk
00:22:03]} {[%emt 00:00:27]} f4 {[%clk 00:18:27]} {[%emt 00:00:26]} 21. hxg5
{[%clk 00:21:29]} {[%emt 00:00:39]} hxg5 {[%clk 00:18:13]} {[%emt 00:00:19]} 22.
Nxg5 {[%clk 00:21:11]} {[%emt 00:00:24]} fxe3 {[%clk 00:18:05]} {[%emt
00:00:12]} 23. fxe3 {[%clk 00:21:11]} {[%emt 00:00:06]} Bg4+ {[%clk 00:16:59]}
{[%emt 00:01:10]} 24. Be2 {[%clk 00:21:11]} {[%emt 00:00:05]} Rf2 {[%clk
00:16:38]} {[%emt 00:00:27]} 25. Nf6+ {[%clk 00:20:40]} {[%emt 00:00:36]} Rxf6
{[%clk 00:16:11]} {[%emt 00:00:31]} 26. Bxg4 {[%clk 00:20:42]} {[%emt
00:00:03]} Na6 {[%clk 00:15:27]} {[%emt 00:00:50]} 27. Rh8+ {[%clk 00:20:17]}
{[%emt 00:00:29]} Rf8 {[%clk 00:14:33]} {[%emt 00:01:00]} 28. Rxf8+ {[%clk
00:20:12]} {[%emt 00:00:10]} Kxf8 {[%clk 00:14:36]} {[%emt 00:00:01]} 29. Rxc6
{[%clk 00:20:09]} {[%emt 00:00:08]} Ke7 {[%emt 00:00:31]} 30. Bc8 {[%clk
00:19:54]} {[%emt 00:00:20]} Nb8 {[%emt 00:00:55]} 31. Re6+ {[%clk 00:19:55]}
{[%emt 00:00:01]} Ke8 {[%emt 00:00:42]} 1-0